[Event "Early-Titled-Tuesday-Blitz-September-26-2023"]
[Site "Chess.com"]
[Date "2023.09.26"]
[Round "6"]
[White "TatjanaVasilevich"]
[Black "Korchmar_Vasiliy"]
[Result "1-0"]
[WhiteElo "2565"]
[BlackElo "2687"]
[TimeControl "180+1"]
[EndTime "9:06:52 PDT"]
[Termination "TatjanaVasilevich won on time"]

1. Nf3 {[%clk 0:02:49.9]} 1... d5 {[%clk 0:02:59.6]} 2. e3 {[%clk 0:02:50.2]}
2... Nf6 {[%clk 0:02:59.6]} 3. b3 {[%clk 0:02:50.8]} 3... e6 {[%clk 0:02:59.8]}
4. Bb2 {[%clk 0:02:51.5]} 4... Bd6 {[%clk 0:03:00.5]} 5. d4 {[%clk 0:02:52]}
5... O-O {[%clk 0:03:00.5]} 6. Bd3 {[%clk 0:02:52.7]} 6... c5 {[%clk 0:02:42.4]}
7. dxc5 {[%clk 0:02:51.2]} 7... Bxc5 {[%clk 0:02:43]} 8. O-O {[%clk 0:02:51.9]}
8... Nc6 {[%clk 0:02:42.9]} 9. Qe2 {[%clk 0:02:51.6]} 9... Qe7 {[%clk
0:02:34.5]} 10. c4 {[%clk 0:02:51.1]} 10... Nb4 {[%clk 0:02:24]} 11. cxd5 {[%clk
0:02:51.4]} 11... exd5 {[%clk 0:02:03.3]} 12. a3 {[%clk 0:02:46.1]} 12... Nxd3
{[%clk 0:02:01.8]} 13. Qxd3 {[%clk 0:02:47]} 13... Bg4 {[%clk 0:01:58]} 14. Nd4
{[%clk 0:02:46.2]} 14... Rad8 {[%clk 0:01:40]} 15. b4 {[%clk 0:02:42.7]} 15...
Bb6 {[%clk 0:01:31.7]} 16. Nd2 {[%clk 0:02:40.8]} 16... Qe5 {[%clk 0:01:26.3]}
17. h3 {[%clk 0:02:37.8]} 17... Bc8 {[%clk 0:00:57.8]} 18. N4f3 {[%clk
0:02:20.8]} 18... Qh5 {[%clk 0:00:57]} 19. Rac1 {[%clk 0:02:06.3]} 19... Bf5
{[%clk 0:00:49.5]} 20. Qb3 {[%clk 0:02:03.6]} 20... Ne4 {[%clk 0:00:46.6]} 21.
Nxe4 {[%clk 0:01:56.3]} 21... Bxe4 {[%clk 0:00:44.4]} 22. Nd4 {[%clk 0:01:53.6]}
22... Rd6 {[%clk 0:00:37.4]} 23. f3 {[%clk 0:01:51.5]} 23... Bg6 {[%clk
0:00:28.2]} 24. Nb5 {[%clk 0:01:46.5]} 24... Re6 {[%clk 0:00:26.2]} 25. Bd4
{[%clk 0:01:46.7]} 25... Qg5 {[%clk 0:00:08.8]} 26. f4 {[%clk 0:01:42.9]} 26...
Qg3 {[%clk 0:00:04.9]} 27. Rf3 {[%clk 0:01:42.7]} 27... Qh4 {[%clk 0:00:04.8]}
28. f5 {[%clk 0:01:39.8]} 28... Bh5 {[%clk 0:00:04.3]} 29. Rf4 {[%clk
0:01:37.5]} 29... Qg3 {[%clk 0:00:02.6]} 30. fxe6 {[%clk 0:01:38]} 1-0

[Event "Early-Titled-Tuesday-Blitz-September-26-2023"]
[Site "Chess.com"]
[Date "2023.09.26"]
[Round "6"]
[White "Martial2008"]
[Black "TigranHH"]
[Result "1-0"]
[WhiteElo "2614"]
[BlackElo "2252"]
[TimeControl "180+1"]
[EndTime "9:06:53 PDT"]
[Termination "Martial2008 won by resignation"]

1. d4 {[%clk 0:03:00.9]} 1... Nf6 {[%clk 0:02:59.5]} 2. Nf3 {[%clk 0:03:01.5]}
2... e6 {[%clk 0:02:59]} 3. Bg5 {[%clk 0:03:02.1]} 3... c5 {[%clk 0:02:56.7]} 4.
e3 {[%clk 0:03:00.9]} 4... Be7 {[%clk 0:02:55.8]} 5. Nbd2 {[%clk 0:03:00.4]}
5... b6 {[%clk 0:02:56.4]} 6. Bd3 {[%clk 0:02:56.9]} 6... Bb7 {[%clk 0:02:56.7]}
7. c3 {[%clk 0:02:57.4]} 7... d6 {[%clk 0:02:57.1]} 8. Qe2 {[%clk 0:02:53]} 8...
Nbd7 {[%clk 0:02:56.9]} 9. Rc1 {[%clk 0:02:46.9]} 9... O-O {[%clk 0:02:53.8]}
10. h4 {[%clk 0:02:46.9]} 10... Re8 {[%clk 0:02:48.8]} 11. e4 {[%clk 0:02:33.8]}
11... cxd4 {[%clk 0:02:38.2]} 12. cxd4 {[%clk 0:02:34.7]} 12... e5 {[%clk
0:02:37.8]} 13. O-O {[%clk 0:02:30.6]} 13... h6 {[%clk 0:02:31.3]} 14. Bxf6
{[%clk 0:02:29]} 14... Nxf6 {[%clk 0:02:27.3]} 15. d5 {[%clk 0:02:28.6]} 15...
Nd7 {[%clk 0:02:14.8]} 16. Bb5 {[%clk 0:02:23.7]} 16... Rf8 {[%clk 0:02:13.3]}
17. b4 {[%clk 0:02:19.7]} 17... a5 {[%clk 0:02:00.4]} 18. a3 {[%clk 0:02:19.2]}
18... axb4 {[%clk 0:01:59]} 19. axb4 {[%clk 0:02:20.1]} 19... f5 {[%clk
0:01:46]} 20. Bc6 {[%clk 0:02:16]} 20... Ra7 {[%clk 0:01:29.4]} 21. Qb5 {[%clk
0:02:12.5]} 21... Nf6 {[%clk 0:01:27.2]} 22. exf5 {[%clk 0:02:07.4]} 22... Ng4
{[%clk 0:01:00.2]} 23. Rc4 {[%clk 0:01:51.1]} 23... h5 {[%clk 0:00:45.7]} 24.
Ne4 {[%clk 0:01:50.5]} 24... Rxf5 {[%clk 0:00:39.6]} 25. Ng3 {[%clk 0:01:50.1]}
25... Bc8 {[%clk 0:00:21.1]} 26. Nxf5 {[%clk 0:01:45.2]} 26... Bxf5 {[%clk
0:00:22]} 27. Rcc1 {[%clk 0:01:35.1]} 27... Bf6 {[%clk 0:00:20]} 28. Ra1 {[%clk
0:01:29.4]} 28... Rxa1 {[%clk 0:00:16.6]} 29. Rxa1 {[%clk 0:01:30.3]} 29... Qe7
{[%clk 0:00:16.8]} 30. Qxb6 {[%clk 0:01:25.3]} 30... e4 {[%clk 0:00:16.7]} 31.
Ra7 {[%clk 0:01:24.7]} 31... Kh7 {[%clk 0:00:17.3]} 32. Rxe7 {[%clk 0:01:24.7]}
1-0

[Event "Early-Titled-Tuesday-Blitz-September-26-2023"]
[Site "Chess.com"]
[Date "2023.09.26"]
[Round "6"]
[White "HrvojeZagreb"]
[Black "ATM622"]
[Result "0-1"]
[WhiteElo "2281"]
[BlackElo "2415"]
[TimeControl "180+1"]
[EndTime "9:06:56 PDT"]
[Termination "ATM622 won by resignation"]

1. f4 {[%clk 0:02:57]} 1... d5 {[%clk 0:02:59.1]} 2. Nf3 {[%clk 0:02:56.4]} 2...
Nf6 {[%clk 0:02:58.8]} 3. e3 {[%clk 0:02:56.8]} 3... g6 {[%clk 0:02:59.3]} 4. b3
{[%clk 0:02:55.3]} 4... Bg7 {[%clk 0:02:59.9]} 5. Bb2 {[%clk 0:02:56]} 5... O-O
{[%clk 0:03:00.5]} 6. d3 {[%clk 0:02:55.2]} 6... c5 {[%clk 0:03:00.9]} 7. Nbd2
{[%clk 0:02:55.3]} 7... Nc6 {[%clk 0:03:01.4]} 8. Be2 {[%clk 0:02:54.1]} 8...
Ng4 {[%clk 0:02:59.6]} 9. Bxg7 {[%clk 0:02:53.3]} 9... Nxe3 {[%clk 0:02:59]} 10.
Qc1 {[%clk 0:02:49]} 10... Kxg7 {[%clk 0:02:55.4]} 11. Kf2 {[%clk 0:02:46.3]}
11... d4 {[%clk 0:02:51.8]} 12. Ne4 {[%clk 0:02:39.5]} 12... e5 {[%clk
0:02:42.1]} 13. fxe5 {[%clk 0:02:36.3]} 13... Ng4+ {[%clk 0:02:36.5]} 14. Kg1
{[%clk 0:02:35.4]} 14... Ncxe5 {[%clk 0:02:34.3]} 15. h3 {[%clk 0:02:34]} 15...
Nxf3+ {[%clk 0:02:33.5]} 16. Bxf3 {[%clk 0:02:33.4]} 16... Ne3 {[%clk
0:02:33.9]} 17. c3 {[%clk 0:02:28.3]} 17... Qe7 {[%clk 0:02:24.7]} 18. cxd4
{[%clk 0:02:14.4]} 18... cxd4 {[%clk 0:02:25.6]} 19. Qb2 {[%clk 0:02:14.3]}
19... Rd8 {[%clk 0:02:21.5]} 20. Re1 {[%clk 0:02:14]} 20... Nf5 {[%clk
0:02:10.3]} 21. g4 {[%clk 0:02:06.7]} 21... Nh4 {[%clk 0:02:06.4]} 22. Kf2
{[%clk 0:01:29.8]} 22... Nxf3 {[%clk 0:02:00.3]} 23. Kxf3 {[%clk 0:01:30.7]}
23... f5 {[%clk 0:01:59.8]} 24. gxf5 {[%clk 0:00:52.7]} 24... Bxf5 {[%clk
0:01:57.6]} 25. h4 {[%clk 0:00:25.7]} 25... h5 {[%clk 0:01:48.7]} 26. Kg3 {[%clk
0:00:15.7]} 26... Qe5+ {[%clk 0:01:47.9]} 27. Kg2 {[%clk 0:00:14.4]} 27... Qf4
{[%clk 0:01:44.6]} 28. Ng3 {[%clk 0:00:11.6]} 28... Re8 {[%clk 0:01:35.5]} 29.
Ref1 {[%clk 0:00:11.1]} 29... Qg4 {[%clk 0:01:33.7]} 30. Rf2 {[%clk 0:00:08.5]}
30... Bxd3 {[%clk 0:01:31.1]} 31. Re1 {[%clk 0:00:05.8]} 31... Rxe1 {[%clk
0:01:29.4]} 0-1

[Event "Early-Titled-Tuesday-Blitz-September-26-2023"]
[Site "Chess.com"]
[Date "2023.09.26"]
[Round "6"]
[White "CalinGheorghiu"]
[Black "Wizard_97"]
[Result "1-0"]
[WhiteElo "2380"]
[BlackElo "2540"]
[TimeControl "180+1"]
[EndTime "9:06:57 PDT"]
[Termination "CalinGheorghiu won by checkmate"]

1. e4 {[%clk 0:03:00.9]} 1... c5 {[%clk 0:02:59.4]} 2. Nf3 {[%clk 0:03:00.3]}
2... d6 {[%clk 0:02:59.3]} 3. d4 {[%clk 0:03:00]} 3... cxd4 {[%clk 0:03:00.2]}
4. Qxd4 {[%clk 0:02:59.5]} 4... a6 {[%clk 0:03:00]} 5. c4 {[%clk 0:02:52.3]}
5... Nc6 {[%clk 0:03:00]} 6. Qd1 {[%clk 0:02:48.9]} 6... g6 {[%clk 0:02:57.9]}
7. Nc3 {[%clk 0:02:48.9]} 7... Nf6 {[%clk 0:02:57.2]} 8. Be2 {[%clk 0:02:48.9]}
8... Bg7 {[%clk 0:02:57.8]} 9. h3 {[%clk 0:02:48.6]} 9... O-O {[%clk 0:02:58.1]}
10. O-O {[%clk 0:02:49.3]} 10... Nd7 {[%clk 0:02:55.9]} 11. Be3 {[%clk
0:02:42.8]} 11... Nde5 {[%clk 0:02:55.3]} 12. Nd2 {[%clk 0:02:42.1]} 12... f5
{[%clk 0:02:49.3]} 13. f4 {[%clk 0:02:38.9]} 13... Nf7 {[%clk 0:02:49.2]} 14.
Bf3 {[%clk 0:02:39.1]} 14... fxe4 {[%clk 0:02:47.6]} 15. Ndxe4 {[%clk
0:02:37.5]} 15... Be6 {[%clk 0:02:43.7]} 16. Nd5 {[%clk 0:02:31.8]} 16... Rc8
{[%clk 0:02:35.6]} 17. Qd2 {[%clk 0:02:25.9]} 17... b5 {[%clk 0:02:07]} 18. cxb5
{[%clk 0:02:19.3]} 18... axb5 {[%clk 0:02:07.9]} 19. Rac1 {[%clk 0:02:18.8]}
19... Re8 {[%clk 0:01:36.9]} 20. Rfd1 {[%clk 0:02:00.3]} 20... Kf8 {[%clk
0:01:17.8]} 21. g4 {[%clk 0:01:52.8]} 21... Qa5 {[%clk 0:01:16.6]} 22. Qxa5
{[%clk 0:01:41.7]} 22... Nxa5 {[%clk 0:01:17.5]} 23. Nc7 {[%clk 0:01:40.5]}
23... Rxc7 {[%clk 0:00:51.2]} 24. Rxc7 {[%clk 0:01:41.4]} 24... Bxb2 {[%clk
0:00:50]} 25. Rb1 {[%clk 0:01:28.1]} 25... Bg7 {[%clk 0:00:46.7]} 26. Rxb5
{[%clk 0:01:24.7]} 26... Ra8 {[%clk 0:00:33.7]} 27. Ra7 {[%clk 0:01:14.1]} 27...
Rxa7 {[%clk 0:00:30.2]} 28. Rb8+ {[%clk 0:01:12.8]} 28... Nd8 {[%clk 0:00:24.3]}
29. Rxd8+ {[%clk 0:01:09.6]} 29... Kf7 {[%clk 0:00:24.6]} 30. Ng5+ {[%clk
0:01:10.1]} 30... Kf6 {[%clk 0:00:24.6]} 31. Bd4# {[%clk 0:01:10.7]} 1-0

[Event "Early-Titled-Tuesday-Blitz-September-26-2023"]
[Site "Chess.com"]
[Date "2023.09.26"]
[Round "6"]
[White "xxysoul6"]
[Black "vovachesss"]
[Result "1-0"]
[WhiteElo "3019"]
[BlackElo "2742"]
[TimeControl "180+1"]
[EndTime "9:07:04 PDT"]
[Termination "xxysoul6 won on time"]

1. e4 {[%clk 0:03:00.9]} 1... e5 {[%clk 0:02:47.6]} 2. Nf3 {[%clk 0:03:00]} 2...
d5 {[%clk 0:02:45.7]} 3. Nxe5 {[%clk 0:02:55.9]} 3... Bd6 {[%clk 0:02:38.6]} 4.
d4 {[%clk 0:02:53.3]} 4... dxe4 {[%clk 0:02:38.9]} 5. Nc3 {[%clk 0:02:51.6]}
5... Bxe5 {[%clk 0:02:39.3]} 6. dxe5 {[%clk 0:02:50.9]} 6... Qxd1+ {[%clk
0:02:40.2]} 7. Nxd1 {[%clk 0:02:51]} 7... Nc6 {[%clk 0:02:39.4]} 8. Nc3 {[%clk
0:02:46.9]} 8... Nd4 {[%clk 0:02:16.3]} 9. Bb5+ {[%clk 0:02:24.6]} 9... Bd7
{[%clk 0:01:38.4]} 10. Bxd7+ {[%clk 0:02:24.1]} 10... Kxd7 {[%clk 0:01:39.3]}
11. O-O {[%clk 0:02:24.1]} 11... Nxc2 {[%clk 0:01:39.7]} 12. Rb1 {[%clk
0:02:24.5]} 12... Re8 {[%clk 0:01:35.9]} 13. Bf4 {[%clk 0:02:19]} 13... Kc8
{[%clk 0:01:17.3]} 14. Nxe4 {[%clk 0:02:13.9]} 14... Nd4 {[%clk 0:01:16.7]} 15.
Rfe1 {[%clk 0:02:08.8]} 15... Ne7 {[%clk 0:01:13.8]} 16. Rbd1 {[%clk 0:02:04.6]}
16... Nec6 {[%clk 0:01:11.8]} 17. Bg3 {[%clk 0:01:47.8]} 17... Nf5 {[%clk
0:00:55.3]} 18. f4 {[%clk 0:01:47.4]} 18... Nxg3 {[%clk 0:00:41]} 19. hxg3
{[%clk 0:01:48.3]} 19... h6 {[%clk 0:00:41.3]} 20. Kf2 {[%clk 0:01:42.3]} 20...
Rd8 {[%clk 0:00:34.6]} 21. g4 {[%clk 0:01:42.1]} 21... Nb4 {[%clk 0:00:32.8]}
22. Kf3 {[%clk 0:01:35.2]} 22... Nxa2 {[%clk 0:00:28.4]} 23. Ra1 {[%clk
0:01:34.5]} 23... Nb4 {[%clk 0:00:29]} 24. Rxa7 {[%clk 0:01:34.5]} 24... Kb8
{[%clk 0:00:26.6]} 25. Ra4 {[%clk 0:01:29.3]} 25... Rd4 {[%clk 0:00:15.6]} 26.
Rea1 {[%clk 0:01:26.3]} 26... Rd3+ {[%clk 0:00:03.5]} 27. Ke2 {[%clk 0:01:24.5]}
1-0

[Event "Early-Titled-Tuesday-Blitz-September-26-2023"]
[Site "Chess.com"]
[Date "2023.09.26"]
[Round "6"]
[White "karinachess1"]
[Black "chezzgirl04"]
[Result "1-0"]
[WhiteElo "2611"]
[BlackElo "2187"]
[TimeControl "180+1"]
[EndTime "9:07:04 PDT"]
[Termination "karinachess1 won by checkmate"]

1. d4 {[%clk 0:03:00.9]} 1... d5 {[%clk 0:02:59.6]} 2. c4 {[%clk 0:03:00.7]}
2... e6 {[%clk 0:02:58.5]} 3. Nc3 {[%clk 0:03:00.8]} 3... Nf6 {[%clk 0:02:58.7]}
4. cxd5 {[%clk 0:03:00.9]} 4... Nxd5 {[%clk 0:02:58.3]} 5. e4 {[%clk 0:02:56]}
5... Nxc3 {[%clk 0:02:58.1]} 6. bxc3 {[%clk 0:02:56.9]} 6... c5 {[%clk
0:02:58.7]} 7. Nf3 {[%clk 0:02:46.4]} 7... cxd4 {[%clk 0:02:58.8]} 8. cxd4
{[%clk 0:02:46.7]} 8... Bb4+ {[%clk 0:02:59.4]} 9. Bd2 {[%clk 0:02:44.2]} 9...
Bxd2+ {[%clk 0:02:59.4]} 10. Qxd2 {[%clk 0:02:44.6]} 10... O-O {[%clk
0:02:59.8]} 11. Be2 {[%clk 0:02:36.2]} 11... Nc6 {[%clk 0:02:56.4]} 12. h4
{[%clk 0:02:36.4]} 12... b6 {[%clk 0:02:55.9]} 13. h5 {[%clk 0:02:36.7]} 13...
h6 {[%clk 0:02:54.5]} 14. Rd1 {[%clk 0:02:27.7]} 14... Bb7 {[%clk 0:02:53.8]}
15. Rh3 {[%clk 0:01:57.4]} 15... Qe7 {[%clk 0:02:41.2]} 16. Rg3 {[%clk
0:01:54.5]} 16... Kh8 {[%clk 0:02:33.7]} 17. Kf1 {[%clk 0:01:47.1]} 17... Rfd8
{[%clk 0:02:32.1]} 18. Qf4 {[%clk 0:01:20.4]} 18... Nb4 {[%clk 0:02:05.6]} 19.
Qg4 {[%clk 0:01:00.8]} 19... Rg8 {[%clk 0:02:04.9]} 20. Ne5 {[%clk 0:00:51.3]}
20... Rac8 {[%clk 0:01:47.3]} 21. Rf3 {[%clk 0:00:46.1]} 21... Rcf8 {[%clk
0:01:45.9]} 22. Rxf7 {[%clk 0:00:45.4]} 22... Rxf7 {[%clk 0:01:20]} 23. Ng6+
{[%clk 0:00:45.5]} 23... Kh7 {[%clk 0:01:19.6]} 24. Nxe7 {[%clk 0:00:46]} 24...
Rxe7 {[%clk 0:01:19.9]} 25. a3 {[%clk 0:00:44.8]} 25... Nc6 {[%clk 0:01:12.8]}
26. Qg6+ {[%clk 0:00:36]} 26... Kh8 {[%clk 0:01:12.3]} 27. e5 {[%clk 0:00:34.7]}
27... Rd8 {[%clk 0:01:02.8]} 28. Bd3 {[%clk 0:00:34.2]} 28... Kg8 {[%clk
0:01:03.1]} 29. Qh7+ {[%clk 0:00:34]} 29... Kf7 {[%clk 0:00:57.6]} 30. Bg6+
{[%clk 0:00:32.9]} 30... Kf8 {[%clk 0:00:57.7]} 31. Qh8# {[%clk 0:00:33.2]} 1-0

[Event "Early-Titled-Tuesday-Blitz-September-26-2023"]
[Site "Chess.com"]
[Date "2023.09.26"]
[Round "6"]
[White "amelia91"]
[Black "WindWhistler11"]
[Result "0-1"]
[WhiteElo "2148"]
[BlackElo "2469"]
[TimeControl "180+1"]
[EndTime "9:07:13 PDT"]
[Termination "WindWhistler11 won by resignation"]

1. d4 {[%clk 0:03:00]} 1... Nf6 {[%clk 0:02:58.8]} 2. Bf4 {[%clk 0:02:59.8]}
2... e6 {[%clk 0:02:59.5]} 3. e3 {[%clk 0:02:59.8]} 3... c5 {[%clk 0:03:00.2]}
4. Nf3 {[%clk 0:02:59.9]} 4... cxd4 {[%clk 0:03:00.9]} 5. exd4 {[%clk
0:03:00.6]} 5... b6 {[%clk 0:03:01.7]} 6. Bd3 {[%clk 0:03:00.2]} 6... Bb7 {[%clk
0:03:02.4]} 7. Nbd2 {[%clk 0:03:01]} 7... d6 {[%clk 0:03:03.1]} 8. O-O {[%clk
0:02:58.3]} 8... Nbd7 {[%clk 0:03:03.7]} 9. Re1 {[%clk 0:02:57.4]} 9... Be7
{[%clk 0:03:04.3]} 10. c3 {[%clk 0:02:53.1]} 10... Nd5 {[%clk 0:03:03.4]} 11.
Bg3 {[%clk 0:02:52.7]} 11... h5 {[%clk 0:03:03.5]} 12. h4 {[%clk 0:02:41.2]}
12... N7f6 {[%clk 0:02:34.7]} 13. Qe2 {[%clk 0:02:34.8]} 13... Qc7 {[%clk
0:02:29.9]} 14. Bb5+ {[%clk 0:02:25]} 14... Kf8 {[%clk 0:02:27.5]} 15. Ng5
{[%clk 0:02:15.6]} 15... Rh6 {[%clk 0:02:23.5]} 16. Bd3 {[%clk 0:02:07.8]} 16...
Ng4 {[%clk 0:02:14.7]} 17. Rad1 {[%clk 0:01:56.5]} 17... Kg8 {[%clk 0:01:59.1]}
18. a3 {[%clk 0:01:51.4]} 18... Qd8 {[%clk 0:01:51.6]} 19. Ngf3 {[%clk
0:01:26.6]} 19... Rf6 {[%clk 0:01:44.2]} 20. Ne4 {[%clk 0:01:25.6]} 20... Rf5
{[%clk 0:01:44.7]} 21. Neg5 {[%clk 0:01:21.2]} 21... Nf4 {[%clk 0:01:44.9]} 22.
Bxf4 {[%clk 0:01:10.6]} 22... Rxf4 {[%clk 0:01:45.1]} 23. Bh7+ {[%clk
0:01:06.5]} 23... Kh8 {[%clk 0:01:39.7]} 24. Qd2 {[%clk 0:00:57.8]} 24... Rxf3
{[%clk 0:01:27.8]} 25. gxf3 {[%clk 0:00:57.4]} 25... Bxg5 {[%clk 0:01:25.4]} 26.
hxg5 {[%clk 0:00:53.5]} 26... Bxf3 {[%clk 0:01:20.5]} 27. Be4 {[%clk 0:00:51.5]}
27... Bxd1 {[%clk 0:01:10.4]} 28. Bxa8 {[%clk 0:00:51.1]} 28... Qxa8 {[%clk
0:01:10.3]} 29. Rxd1 {[%clk 0:00:50]} 29... Qf3 {[%clk 0:01:04.8]} 30. Rf1
{[%clk 0:00:40.6]} 30... h4 {[%clk 0:01:00.3]} 31. g6 {[%clk 0:00:35.8]} 31...
h3 {[%clk 0:00:57.8]} 0-1

[Event "Early-Titled-Tuesday-Blitz-September-26-2023"]
[Site "Chess.com"]
[Date "2023.09.26"]
[Round "6"]
[White "AleksandraMilovic"]
[Black "Botvinnak"]
[Result "0-1"]
[WhiteElo "2040"]
[BlackElo "2309"]
[TimeControl "180+1"]
[EndTime "9:07:14 PDT"]
[Termination "Botvinnak won by resignation"]

1. e4 {[%clk 0:03:00.9]} 1... c5 {[%clk 0:02:19.3]} 2. Nf3 {[%clk 0:02:58.5]}
2... Nc6 {[%clk 0:02:18.5]} 3. c4 {[%clk 0:02:55.1]} 3... g6 {[%clk 0:02:18]} 4.
d4 {[%clk 0:02:50.7]} 4... cxd4 {[%clk 0:02:18.3]} 5. Nxd4 {[%clk 0:02:51.6]}
5... Bg7 {[%clk 0:02:18.8]} 6. Be3 {[%clk 0:02:51.6]} 6... Nf6 {[%clk
0:02:15.9]} 7. f3 {[%clk 0:02:52.2]} 7... O-O {[%clk 0:02:16.1]} 8. Nc3 {[%clk
0:02:51.5]} 8... Ne8 {[%clk 0:02:16.2]} 9. Rc1 {[%clk 0:02:48.5]} 9... Nc7
{[%clk 0:02:15.4]} 10. Be2 {[%clk 0:02:43.6]} 10... b6 {[%clk 0:02:14.7]} 11.
O-O {[%clk 0:02:30.9]} 11... Bb7 {[%clk 0:02:14.6]} 12. Qd2 {[%clk 0:02:26.2]}
12... Na6 {[%clk 0:02:10.2]} 13. a3 {[%clk 0:02:17.6]} 13... Rc8 {[%clk
0:02:02.5]} 14. b4 {[%clk 0:02:14.5]} 14... Ne5 {[%clk 0:01:58.1]} 15. Ncb5
{[%clk 0:01:16.3]} 15... Ra8 {[%clk 0:01:54.4]} 16. f4 {[%clk 0:01:08.2]} 16...
Nc6 {[%clk 0:01:52.9]} 17. Nc3 {[%clk 0:01:07.8]} 17... Nc7 {[%clk 0:01:50.1]}
18. Nb3 {[%clk 0:00:54.5]} 18... Ne6 {[%clk 0:01:44.6]} 19. f5 {[%clk 0:00:50]}
19... Nc7 {[%clk 0:01:41.7]} 20. Bh6 {[%clk 0:00:28.9]} 20... Ne5 {[%clk
0:01:36]} 21. Bxg7 {[%clk 0:00:24.7]} 21... Kxg7 {[%clk 0:01:36.3]} 22. Nd5
{[%clk 0:00:14.9]} 22... d6 {[%clk 0:01:33.4]} 23. f6+ {[%clk 0:00:15.1]} 23...
exf6 {[%clk 0:01:31.8]} 24. Nxf6 {[%clk 0:00:14.7]} 24... Ne6 {[%clk 0:01:30.3]}
25. Nd5 {[%clk 0:00:13.4]} 25... a5 {[%clk 0:01:24]} 26. Nd4 {[%clk 0:00:13.1]}
26... axb4 {[%clk 0:01:20.6]} 27. axb4 {[%clk 0:00:13.7]} 27... Nxd4 {[%clk
0:01:19]} 28. Qxd4 {[%clk 0:00:14.6]} 28... Bxd5 {[%clk 0:01:19.4]} 29. exd5
{[%clk 0:00:13.2]} 29... Ra2 {[%clk 0:01:19.5]} 30. Bf3 {[%clk 0:00:12.1]} 30...
Qf6 {[%clk 0:01:17.3]} 31. Rce1 {[%clk 0:00:10]} 31... Nxf3+ {[%clk 0:01:16.9]}
32. Rxf3 {[%clk 0:00:09.8]} 32... Qxd4+ {[%clk 0:01:17.1]} 0-1

[Event "Early-Titled-Tuesday-Blitz-September-26-2023"]
[Site "Chess.com"]
[Date "2023.09.26"]
[Round "6"]
[White "GianmarcoVaR"]
[Black "MikeSailer"]
[Result "1-0"]
[WhiteElo "2612"]
[BlackElo "2225"]
[TimeControl "180+1"]
[EndTime "9:07:15 PDT"]
[Termination "GianmarcoVaR won by resignation"]

1. e4 {[%clk 0:02:50.8]} 1... d5 {[%clk 0:02:59.3]} 2. exd5 {[%clk 0:02:49.4]}
2... Qxd5 {[%clk 0:02:58.7]} 3. d4 {[%clk 0:02:49.9]} 3... Nc6 {[%clk
0:02:58.3]} 4. Be3 {[%clk 0:02:35.9]} 4... Nf6 {[%clk 0:02:57]} 5. Nc3 {[%clk
0:02:35.3]} 5... Qa5 {[%clk 0:02:44]} 6. Bc4 {[%clk 0:02:26.5]} 6... Bf5 {[%clk
0:02:24.7]} 7. Nf3 {[%clk 0:02:01.3]} 7... O-O-O {[%clk 0:02:10.4]} 8. Qe2
{[%clk 0:01:55.5]} 8... Ne4 {[%clk 0:01:56]} 9. O-O {[%clk 0:01:49.6]} 9... Nxc3
{[%clk 0:01:54.8]} 10. bxc3 {[%clk 0:01:47.3]} 10... Qxc3 {[%clk 0:01:53]} 11.
Rfc1 {[%clk 0:01:15.8]} 11... e6 {[%clk 0:01:44.2]} 12. Rab1 {[%clk 0:01:15.1]}
12... Ba3 {[%clk 0:01:05.3]} 13. Rb3 {[%clk 0:01:12]} 13... Qa5 {[%clk
0:01:00.9]} 14. Rcb1 {[%clk 0:01:03.6]} 14... b6 {[%clk 0:00:50.6]} 15. Bd2
{[%clk 0:00:55.5]} 15... Qa4 {[%clk 0:00:41.1]} 16. Bb5 {[%clk 0:00:51.3]} 16...
Qxb5 {[%clk 0:00:20.1]} 17. Qxb5 {[%clk 0:00:48.9]} 17... Bxc2 {[%clk
0:00:12.9]} 18. Qxc6 {[%clk 0:00:42.9]} 18... Bxb1 {[%clk 0:00:12.1]} 19. Rxa3
{[%clk 0:00:37.5]} 1-0

[Event "Early-Titled-Tuesday-Blitz-September-26-2023"]
[Site "Chess.com"]
[Date "2023.09.26"]
[Round "6"]
[White "ContrVersia"]
[Black "GradualismUnleashed"]
[Result "1-0"]
[WhiteElo "2890"]
[BlackElo "2598"]
[TimeControl "180+1"]
[EndTime "9:07:21 PDT"]
[Termination "ContrVersia won by resignation"]

1. Nf3 {[%clk 0:03:00.9]} 1... d5 {[%clk 0:02:58.9]} 2. c4 {[%clk 0:03:01.2]}
2... d4 {[%clk 0:02:59.1]} 3. b4 {[%clk 0:03:00.7]} 3... g5 {[%clk 0:02:59.3]}
4. Qb3 {[%clk 0:02:59.4]} 4... Bg7 {[%clk 0:02:55.8]} 5. Nxg5 {[%clk 0:02:59.1]}
5... e5 {[%clk 0:02:56.1]} 6. Qg3 {[%clk 0:02:59.1]} 6... Qe7 {[%clk 0:02:56.5]}
7. b5 {[%clk 0:02:56.7]} 7... h6 {[%clk 0:02:46.1]} 8. Ne4 {[%clk 0:02:45.7]}
8... f5 {[%clk 0:02:46.2]} 9. Ba3 {[%clk 0:02:45.8]} 9... Qf7 {[%clk 0:02:45.1]}
10. Nc5 {[%clk 0:02:45.2]} 10... b6 {[%clk 0:02:41.7]} 11. Nb3 {[%clk 0:02:45]}
11... Bb7 {[%clk 0:02:41.5]} 12. d3 {[%clk 0:02:32.1]} 12... Nd7 {[%clk
0:02:41.4]} 13. N1d2 {[%clk 0:02:26.1]} 13... Ngf6 {[%clk 0:02:40.9]} 14. e3
{[%clk 0:02:15.6]} 14... O-O-O {[%clk 0:02:32.7]} 15. exd4 {[%clk 0:02:05.3]}
15... Rhe8 {[%clk 0:02:28.2]} 16. d5 {[%clk 0:02:02.4]} 16... e4 {[%clk
0:02:25.2]} 17. d4 {[%clk 0:01:54.5]} 17... Nh5 {[%clk 0:02:17]} 18. Qc3 {[%clk
0:01:53.4]} 18... e3 {[%clk 0:02:07.2]} 19. fxe3 {[%clk 0:01:33.8]} 19... Rxe3+
{[%clk 0:02:05.2]} 20. Qxe3 {[%clk 0:01:34.7]} 20... Re8 {[%clk 0:02:05.4]} 21.
Qxe8+ {[%clk 0:01:35]} 21... Qxe8+ {[%clk 0:02:06.3]} 22. Kd1 {[%clk 0:01:35.7]}
22... Nf4 {[%clk 0:01:58.4]} 23. Kc2 {[%clk 0:01:27.5]} 23... Nf6 {[%clk
0:01:52.8]} 24. g3 {[%clk 0:01:26.6]} 24... N4xd5 {[%clk 0:01:49.5]} 25. cxd5
{[%clk 0:01:26.6]} 25... Nxd5 {[%clk 0:01:49.6]} 26. Bd3 {[%clk 0:01:20.5]}
26... Ne3+ {[%clk 0:01:45.9]} 27. Kb2 {[%clk 0:01:20.7]} 27... Bxh1 {[%clk
0:01:39.4]} 28. Rxh1 {[%clk 0:01:20.1]} 28... Qd7 {[%clk 0:01:39.6]} 29. Kb1
{[%clk 0:00:48.2]} 29... Bxd4 {[%clk 0:01:34.9]} 30. Rc1 {[%clk 0:00:42.6]}
30... Nd5 {[%clk 0:01:16.1]} 31. Nxd4 {[%clk 0:00:40.6]} 31... Ne3 {[%clk
0:01:00.1]} 32. Bb2 {[%clk 0:00:36.7]} 32... Kb8 {[%clk 0:00:55.6]} 33. Nc4
{[%clk 0:00:34.6]} 33... Nxc4 {[%clk 0:00:55]} 34. Rxc4 {[%clk 0:00:34.2]} 34...
Qe7 {[%clk 0:00:47.1]} 35. Nc6+ {[%clk 0:00:33.7]} 1-0